[Event "*** Titled Tuesday Blitz"]
[Site "Chess.com"]
[Date "2021.03.16"]
[Round "5"]
[White "lagedema"]
[Black "Playgood28"]
[Result "1-0"]
[WhiteElo "2457"]
[BlackElo "2285"]
[TimeControl "180+1"]
[EndTime "10:55:07 PDT"]
[Termination "lagedema won on time"]

1. d4 {[%clk 0:03:00.9]} 1... f5 {[%clk 0:02:58.9]} 2. Bg5 {[%clk 0:03:00.3]}
2... g6 {[%clk 0:02:57.9]} 3. e3 {[%clk 0:02:55.2]} 3... Bg7 {[%clk 0:02:56.9]}
4. Bc4 {[%clk 0:02:51.9]} 4... Nf6 {[%clk 0:02:56.2]} 5. Nc3 {[%clk 0:02:43.4]}
5... e6 {[%clk 0:02:55.6]} 6. d5 {[%clk 0:02:41.1]} 6... Qe7 {[%clk 0:02:40.4]}
7. Qd2 {[%clk 0:02:19]} 7... h6 {[%clk 0:02:38.3]} 8. Bh4 {[%clk 0:02:13.4]}
8... d6 {[%clk 0:02:25.5]} 9. dxe6 {[%clk 0:01:55]} 9... c6 {[%clk 0:02:18.3]}
10. Nge2 {[%clk 0:01:50.2]} 10... d5 {[%clk 0:02:10.1]} 11. Bb3 {[%clk
0:01:49.4]} 11... g5 {[%clk 0:02:08.4]} 12. Bg3 {[%clk 0:01:47.7]} 12... Bxe6
{[%clk 0:02:08.1]} 13. f3 {[%clk 0:01:45.3]} 13... Nbd7 {[%clk 0:02:04.5]} 14.
h4 {[%clk 0:01:45.1]} 14... g4 {[%clk 0:02:00.2]} 15. O-O-O {[%clk 0:01:43.7]}
15... O-O {[%clk 0:01:55.3]} 16. Nf4 {[%clk 0:01:42.2]} 16... Rfe8 {[%clk
0:01:38.3]} 17. e4 {[%clk 0:01:22]} 17... fxe4 {[%clk 0:01:17.3]} 18. fxe4
{[%clk 0:01:18.1]} 18... Nc5 {[%clk 0:01:16.4]} 19. Nxe6 {[%clk 0:01:14.8]}
19... Nxb3+ {[%clk 0:01:11.6]} 20. axb3 {[%clk 0:01:14]} 20... Qxe6 {[%clk
0:01:11.6]} 21. exd5 {[%clk 0:01:14.4]} 21... Nxd5 {[%clk 0:01:08]} 22. Nxd5
{[%clk 0:01:12.1]} 22... cxd5 {[%clk 0:01:05.8]} 23. Qxd5 {[%clk 0:01:12.5]}
23... Qxd5 {[%clk 0:00:59]} 24. Rxd5 {[%clk 0:01:13.4]} 24... Re7 {[%clk
0:00:54.2]} 25. Rhd1 {[%clk 0:01:09.4]} 25... Rae8 {[%clk 0:00:46.6]} 26. c3
{[%clk 0:01:08.7]} 26... a6 {[%clk 0:00:45.4]} 27. R1d2 {[%clk 0:01:07.4]} 27...
Re3 {[%clk 0:00:40.4]} 28. R5d3 {[%clk 0:01:06.2]} 28... Rxd3 {[%clk 0:00:38.8]}
29. Rxd3 {[%clk 0:01:07.1]} 29... Re2 {[%clk 0:00:38]} 30. Rd2 {[%clk 0:01:07]}
30... Re3 {[%clk 0:00:31.2]} 31. Bf2 {[%clk 0:01:07.2]} 31... Re4 {[%clk
0:00:28.8]} 32. Kc2 {[%clk 0:01:06.5]} 32... Re7 {[%clk 0:00:24.2]} 33. Bd4
{[%clk 0:01:00]} 33... Bxd4 {[%clk 0:00:22]} 34. Rxd4 {[%clk 0:01:00.9]} 34...
Re2+ {[%clk 0:00:19.4]} 35. Rd2 {[%clk 0:01:01]} 35... Re7 {[%clk 0:00:17.8]}
36. Kd3 {[%clk 0:00:57.5]} 36... Kf7 {[%clk 0:00:17.1]} 37. Rf2+ {[%clk
0:00:56.6]} 37... Kg6 {[%clk 0:00:16.4]} 38. Rf4 {[%clk 0:00:54.8]} 38... h5
{[%clk 0:00:15.6]} 39. b4 {[%clk 0:00:51.3]} 39... Rd7+ {[%clk 0:00:15]} 40. Rd4
{[%clk 0:00:49.8]} 40... Rf7 {[%clk 0:00:14.8]} 41. Ke3 {[%clk 0:00:49]} 41...
Re7+ {[%clk 0:00:14]} 42. Re4 {[%clk 0:00:48.3]} 42... Rf7 {[%clk 0:00:14]} 43.
c4 {[%clk 0:00:45.8]} 43... Rd7 {[%clk 0:00:13]} 44. Re6+ {[%clk 0:00:40.8]}
44... Kg7 {[%clk 0:00:12.6]} 45. c5 {[%clk 0:00:38.8]} 45... Rd1 {[%clk
0:00:11.2]} 46. Rb6 {[%clk 0:00:38.9]} 46... Re1+ {[%clk 0:00:08.2]} 47. Kf2
{[%clk 0:00:38.2]} 47... Re7 {[%clk 0:00:07.4]} 48. Kg3 {[%clk 0:00:35.9]} 48...
Re3+ {[%clk 0:00:05]} 49. Kf4 {[%clk 0:00:35]} 49... Rb3 {[%clk 0:00:03.9]} 50.
Rxb7+ {[%clk 0:00:33.5]} 50... Kf6 {[%clk 0:00:03.5]} 51. Rb6+ {[%clk
0:00:33.7]} 51... Kg7 {[%clk 0:00:03.5]} 52. Kg5 {[%clk 0:00:32.8]} 52... Rxb2
{[%clk 0:00:02.8]} 53. Rb7+ {[%clk 0:00:33]} 53... Kf8 {[%clk 0:00:02.9]} 54. g3
{[%clk 0:00:31.3]} 54... Rb3 {[%clk 0:00:01.9]} 55. c6 {[%clk 0:00:30.8]} 1-0

[Event "*** Titled Tuesday Blitz"]
[Site "Chess.com"]
[Date "2021.03.16"]
[Round "5"]
[White "Murad_Ibrahimli"]
[Black "Agibileg"]
[Result "1-0"]
[WhiteElo "2772"]
[BlackElo "2523"]
[TimeControl "180+1"]
[EndTime "10:55:09 PDT"]
[Termination "Murad_Ibrahimli won by resignation"]

1. Nf3 {[%clk 0:03:00.9]} 1... Nf6 {[%clk 0:02:33.1]} 2. d4 {[%clk 0:03:00.4]}
2... g6 {[%clk 0:02:29]} 3. Bg5 {[%clk 0:03:00.1]} 3... Bg7 {[%clk 0:02:26.8]}
4. Nbd2 {[%clk 0:03:00.1]} 4... d5 {[%clk 0:02:26.5]} 5. e3 {[%clk 0:02:59.6]}
5... O-O {[%clk 0:02:23]} 6. Bd3 {[%clk 0:02:59.7]} 6... c5 {[%clk 0:02:22.1]}
7. c3 {[%clk 0:02:59]} 7... Nc6 {[%clk 0:02:21.9]} 8. O-O {[%clk 0:02:58]} 8...
Bg4 {[%clk 0:02:18.7]} 9. h3 {[%clk 0:02:52.2]} 9... Bxf3 {[%clk 0:02:17.3]} 10.
Nxf3 {[%clk 0:02:53.1]} 10... Rc8 {[%clk 0:02:15.6]} 11. Qa4 {[%clk 0:02:15.6]}
11... Qd7 {[%clk 0:02:15.2]} 12. dxc5 {[%clk 0:01:56]} 12... e5 {[%clk
0:02:11.1]} 13. Bxf6 {[%clk 0:01:54.1]} 13... Bxf6 {[%clk 0:02:08.9]} 14. e4
{[%clk 0:01:53.7]} 14... Rfd8 {[%clk 0:01:52.4]} 15. Rad1 {[%clk 0:01:39.7]}
15... Nd4 {[%clk 0:01:50.8]} 16. Qxd7 {[%clk 0:01:39]} 16... Nxf3+ {[%clk
0:01:50.7]} 17. gxf3 {[%clk 0:01:39.9]} 17... Rxd7 {[%clk 0:01:50.8]} 18. b4
{[%clk 0:01:31.7]} 18... d4 {[%clk 0:01:41.3]} 19. Bb5 {[%clk 0:01:30.5]} 19...
Rdc7 {[%clk 0:01:40]} 20. cxd4 {[%clk 0:01:30.2]} 20... exd4 {[%clk 0:01:40]}
21. f4 {[%clk 0:01:30.7]} 21... a5 {[%clk 0:01:32.7]} 22. a3 {[%clk 0:01:28.9]}
22... Rd8 {[%clk 0:01:27.5]} 23. e5 {[%clk 0:01:27.7]} 23... Bg7 {[%clk
0:01:27.5]} 24. Rd3 {[%clk 0:01:26.1]} 24... axb4 {[%clk 0:01:26.2]} 25. axb4
{[%clk 0:01:25.5]} 25... Bh6 {[%clk 0:01:26.9]} 26. Re1 {[%clk 0:00:48]} 26...
Bxf4 {[%clk 0:01:25.6]} 27. Re4 {[%clk 0:00:48.5]} 27... g5 {[%clk 0:01:24]} 28.
e6 {[%clk 0:00:47.3]} 28... fxe6 {[%clk 0:01:22.5]} 29. Rxe6 {[%clk 0:00:48.2]}
29... Kf7 {[%clk 0:01:00.4]} 30. Re4 {[%clk 0:00:45.5]} 30... Re7 {[%clk
0:01:00.8]} 31. Rexd4 {[%clk 0:00:42]} 31... Re1+ {[%clk 0:00:59.6]} 32. Kg2
{[%clk 0:00:41.6]} 32... Rxd4 {[%clk 0:00:59.7]} 33. Rxd4 {[%clk 0:00:42.5]}
33... Rb1 {[%clk 0:00:58.6]} 34. Bd7 {[%clk 0:00:30.3]} 34... Rb2 {[%clk
0:00:55.1]} 35. Kf3 {[%clk 0:00:29.2]} 35... Be5 {[%clk 0:00:52.7]} 36. Rc4
{[%clk 0:00:28.7]} 36... Ke7 {[%clk 0:00:49.7]} 37. Bc8 {[%clk 0:00:27.8]} 37...
Rb3+ {[%clk 0:00:45]} 38. Ke4 {[%clk 0:00:25.2]} 38... Bc3 {[%clk 0:00:45.1]}
39. b5 {[%clk 0:00:25.6]} 39... Ba5 {[%clk 0:00:42.2]} 40. b6 {[%clk 0:00:25.3]}
40... Rb4 {[%clk 0:00:40.4]} 41. Rxb4 {[%clk 0:00:24.3]} 41... Bxb4 {[%clk
0:00:41.3]} 42. Kd5 {[%clk 0:00:24.8]} 42... Be1 {[%clk 0:00:27]} 43. f3 {[%clk
0:00:24.7]} 43... h5 {[%clk 0:00:22.4]} 44. Bxb7 {[%clk 0:00:24.8]} 44... Bf2
{[%clk 0:00:20.3]} 45. Ba6 {[%clk 0:00:24.6]} 45... Kd8 {[%clk 0:00:20.6]} 46.
Bd3 {[%clk 0:00:24.7]} 46... h4 {[%clk 0:00:20.4]} 47. Bf5 {[%clk 0:00:24.3]}
47... Be3 {[%clk 0:00:19.8]} 48. Kc6 {[%clk 0:00:23.8]} 48... Bf2 {[%clk
0:00:19.4]} 49. Kb5 {[%clk 0:00:24]} 49... Be3 {[%clk 0:00:15.1]} 50. c6 {[%clk
0:00:23.8]} 50... Bf4 {[%clk 0:00:15.5]} 51. Kc4 {[%clk 0:00:23.8]} 51... Bg3
{[%clk 0:00:14.5]} 52. Kd5 {[%clk 0:00:24]} 52... Bf4 {[%clk 0:00:14.1]} 53. c7+
{[%clk 0:00:23.8]} 53... Bxc7 {[%clk 0:00:13.5]} 54. bxc7+ {[%clk 0:00:24.7]}
54... Kxc7 {[%clk 0:00:14.4]} 55. Ke6 {[%clk 0:00:25]} 55... Kd8 {[%clk
0:00:13.3]} 56. Kf6 {[%clk 0:00:24.4]} 1-0

[Event "*** Titled Tuesday Blitz"]
[Site "Chess.com"]
[Date "2021.03.16"]
[Round "5"]
[White "guillembaches"]
[Black "Abund"]
[Result "0-1"]
[WhiteElo "2471"]
[BlackElo "2688"]
[TimeControl "180+1"]
[EndTime "10:55:14 PDT"]
[Termination "Abund won on time"]

1. e4 {[%clk 0:02:54.1]} 1... c5 {[%clk 0:02:59.4]} 2. Nf3 {[%clk 0:02:52.7]}
2... d6 {[%clk 0:02:59.8]} 3. d4 {[%clk 0:02:52.3]} 3... cxd4 {[%clk 0:03:00.7]}
4. Qxd4 {[%clk 0:02:52.3]} 4... Nc6 {[%clk 0:03:00.3]} 5. Qe3 {[%clk 0:02:52.6]}
5... g6 {[%clk 0:02:59.6]} 6. c4 {[%clk 0:02:52]} 6... Bg7 {[%clk 0:02:58.9]} 7.
h3 {[%clk 0:02:51.9]} 7... Nf6 {[%clk 0:02:57.4]} 8. Be2 {[%clk 0:02:52.1]} 8...
O-O {[%clk 0:02:44.2]} 9. O-O {[%clk 0:02:51.6]} 9... Qb6 {[%clk 0:02:44.5]} 10.
Qxb6 {[%clk 0:02:46.8]} 10... axb6 {[%clk 0:02:43.4]} 11. Nc3 {[%clk 0:02:46.9]}
11... Nd7 {[%clk 0:02:26.6]} 12. Nd5 {[%clk 0:02:39.9]} 12... e6 {[%clk
0:02:24.3]} 13. Nc7 {[%clk 0:02:34.2]} 13... Ra4 {[%clk 0:02:11.4]} 14. Nb5
{[%clk 0:02:27.3]} 14... Nc5 {[%clk 0:01:45.3]} 15. Nxd6 {[%clk 0:02:06.6]}
15... Rd8 {[%clk 0:01:43.9]} 16. Rd1 {[%clk 0:02:04.9]} 16... Nb3 {[%clk
0:01:25.2]} 17. Rb1 {[%clk 0:01:52.1]} 17... Nxc1 {[%clk 0:01:24.4]} 18. Rbxc1
{[%clk 0:01:38.2]} 18... Rxa2 {[%clk 0:01:23.4]} 19. Bf1 {[%clk 0:01:17.6]}
19... Rxb2 {[%clk 0:01:18.7]} 20. Nxc8 {[%clk 0:01:14.9]} 20... Rxc8 {[%clk
0:01:17.9]} 21. Rb1 {[%clk 0:01:14.7]} 21... Rb4 {[%clk 0:01:04.4]} 22. Rxb4
{[%clk 0:01:03.5]} 22... Nxb4 {[%clk 0:01:04.3]} 23. Rb1 {[%clk 0:01:03.6]}
23... Bf8 {[%clk 0:01:03]} 24. Ne5 {[%clk 0:00:57.1]} 24... Rd8 {[%clk
0:01:01.7]} 25. Nd3 {[%clk 0:00:48.9]} 25... Rxd3 {[%clk 0:00:35]} 26. Rxb4
{[%clk 0:00:39.5]} 26... Rd2 {[%clk 0:00:35.1]} 27. Rb3 {[%clk 0:00:27.7]} 27...
Bc5 {[%clk 0:00:34.8]} 28. Rf3 {[%clk 0:00:27.6]} 28... Kf8 {[%clk 0:00:26.7]}
29. h4 {[%clk 0:00:27.2]} 29... Ke7 {[%clk 0:00:25.8]} 30. g4 {[%clk 0:00:23.5]}
30... h6 {[%clk 0:00:21]} 31. Kg2 {[%clk 0:00:23.1]} 31... g5 {[%clk 0:00:20.6]}
32. hxg5 {[%clk 0:00:21.6]} 32... hxg5 {[%clk 0:00:21.5]} 33. Bd3 {[%clk
0:00:20.1]} 33... Bxf2 {[%clk 0:00:20.2]} 34. Rxf2 {[%clk 0:00:17.4]} 34... Rxd3
{[%clk 0:00:20.2]} 35. Rb2 {[%clk 0:00:18]} 35... Rd6 {[%clk 0:00:20.2]} 36. Kf3
{[%clk 0:00:17.6]} 36... Rc6 {[%clk 0:00:20]} 37. e5 {[%clk 0:00:17.2]} 37...
Kd7 {[%clk 0:00:18.7]} 38. Rb4 {[%clk 0:00:17.3]} 38... Kc7 {[%clk 0:00:17.6]}
39. Ke4 {[%clk 0:00:17.6]} 39... Rc5 {[%clk 0:00:17.7]} 40. Kd4 {[%clk 0:00:18]}
40... Kc6 {[%clk 0:00:17.8]} 41. Rb1 {[%clk 0:00:18.1]} 41... b5 {[%clk
0:00:18]} 42. cxb5+ {[%clk 0:00:18.6]} 42... Rxb5 {[%clk 0:00:18.9]} 43. Rc1+
{[%clk 0:00:19.1]} 43... Kb6 {[%clk 0:00:18.8]} 44. Rf1 {[%clk 0:00:19.7]} 44...
Rb4+ {[%clk 0:00:18.7]} 45. Kd3 {[%clk 0:00:20.2]} 45... Rf4 {[%clk 0:00:18.8]}
46. Rb1+ {[%clk 0:00:18.3]} 46... Kc6 {[%clk 0:00:18.9]} 47. Ke3 {[%clk
0:00:18.8]} 47... b5 {[%clk 0:00:18.6]} 48. Rc1+ {[%clk 0:00:18.3]} 48... Kd5
{[%clk 0:00:18.5]} 49. Rc7 {[%clk 0:00:18.5]} 49... b4 {[%clk 0:00:18]} 50. Rb7
{[%clk 0:00:17.9]} 50... Kxe5 {[%clk 0:00:17.8]} 0-1

[Event "*** Titled Tuesday Blitz"]
[Site "Chess.com"]
[Date "2021.03.16"]
[Round "5"]
[White "andriipalchuk"]
[Black "davigator"]
[Result "0-1"]
[WhiteElo "2573"]
[BlackElo "2426"]
[TimeControl "180+1"]
[EndTime "10:55:15 PDT"]
[Termination "davigator won on time"]

1. d4 {[%clk 0:03:00.9]} 1... Nf6 {[%clk 0:02:59.2]} 2. c4 {[%clk 0:03:01.3]}
2... e6 {[%clk 0:02:59.1]} 3. Nf3 {[%clk 0:03:01]} 3... Bb4+ {[%clk 0:02:59.3]}
4. Nbd2 {[%clk 0:03:00.5]} 4... b6 {[%clk 0:02:58.3]} 5. g3 {[%clk 0:03:00.9]}
5... Bb7 {[%clk 0:02:57.4]} 6. Bg2 {[%clk 0:03:01.2]} 6... O-O {[%clk
0:02:57.6]} 7. O-O {[%clk 0:03:01.4]} 7... d5 {[%clk 0:02:57.5]} 8. Qc2 {[%clk
0:02:55.7]} 8... Nbd7 {[%clk 0:02:56.7]} 9. b3 {[%clk 0:02:39.9]} 9... Rc8
{[%clk 0:02:51.6]} 10. Bb2 {[%clk 0:02:39.1]} 10... Qe7 {[%clk 0:02:34.8]} 11.
Rac1 {[%clk 0:02:21.1]} 11... Bd6 {[%clk 0:02:05.7]} 12. Qb1 {[%clk 0:02:19.7]}
12... c5 {[%clk 0:01:55.8]} 13. Qa1 {[%clk 0:02:18.6]} 13... cxd4 {[%clk
0:01:53.1]} 14. Nxd4 {[%clk 0:02:17.4]} 14... a6 {[%clk 0:01:48.9]} 15. a3
{[%clk 0:02:08]} 15... Rfd8 {[%clk 0:01:45.4]} 16. b4 {[%clk 0:02:06.9]} 16...
Bb8 {[%clk 0:01:35.2]} 17. Rfd1 {[%clk 0:01:59.7]} 17... Nf8 {[%clk 0:01:32]}
18. cxd5 {[%clk 0:01:37.9]} 18... Bxd5 {[%clk 0:01:28.9]} 19. e4 {[%clk
0:01:37.9]} 19... Bb7 {[%clk 0:01:27]} 20. Nc4 {[%clk 0:01:36.7]} 20... Ba7
{[%clk 0:01:23.4]} 21. e5 {[%clk 0:01:05.6]} 21... Bxg2 {[%clk 0:01:05.1]} 22.
Kxg2 {[%clk 0:01:01.1]} 22... Qb7+ {[%clk 0:01:03.3]} 23. Kg1 {[%clk 0:01:01]}
23... Ng4 {[%clk 0:00:56.9]} 24. Nd6 {[%clk 0:00:52.7]} 24... Rxc1 {[%clk
0:00:53.6]} 25. Qxc1 {[%clk 0:00:50]} 25... Qd7 {[%clk 0:00:48.4]} 26. Nc6
{[%clk 0:00:33.4]} 26... Ra8 {[%clk 0:00:47.8]} 27. h3 {[%clk 0:00:24.1]} 27...
Nxf2 {[%clk 0:00:43.9]} 28. Kxf2 {[%clk 0:00:23.8]} 28... b5+ {[%clk 0:00:44.4]}
29. Nxa7 {[%clk 0:00:23.7]} 29... Qxa7+ {[%clk 0:00:43.4]} 30. Qc5 {[%clk
0:00:24.3]} 30... Qe7 {[%clk 0:00:42.1]} 31. Ne4 {[%clk 0:00:18.7]} 31... Qb7
{[%clk 0:00:37.7]} 32. Rd4 {[%clk 0:00:13.3]} 32... Rc8 {[%clk 0:00:35.6]} 33.
Qd6 {[%clk 0:00:11.6]} 33... Rc2+ {[%clk 0:00:34.2]} 34. Rd2 {[%clk 0:00:11.7]}
34... Rc4 {[%clk 0:00:33.8]} 35. Ng5 {[%clk 0:00:05.2]} 35... h6 {[%clk
0:00:32.8]} 36. Nf3 {[%clk 0:00:04.2]} 36... Qe4 {[%clk 0:00:30.7]} 37. Qd3
{[%clk 0:00:04.9]} 37... Qc6 {[%clk 0:00:28.9]} 38. Qe3 {[%clk 0:00:03.6]} 38...
Rc2 {[%clk 0:00:28.2]} 39. Rxc2 {[%clk 0:00:02.7]} 39... Qxc2+ {[%clk
0:00:28.3]} 40. Qe2 {[%clk 0:00:03.6]} 40... Qb3 {[%clk 0:00:28.9]} 41. Qd2
{[%clk 0:00:03.6]} 41... Nd7 {[%clk 0:00:26.7]} 42. Qxd7 {[%clk 0:00:03.4]}
42... Qxb2+ {[%clk 0:00:26.6]} 43. Ke3 {[%clk 0:00:04]} 43... Qxa3+ {[%clk
0:00:26.7]} 44. Qd3 {[%clk 0:00:04.6]} 44... Qxb4 {[%clk 0:00:26.1]} 45. Qd8+
{[%clk 0:00:05.3]} 45... Kh7 {[%clk 0:00:25.8]} 46. Qd4 {[%clk 0:00:06.2]} 46...
Qe7 {[%clk 0:00:22.5]} 47. h4 {[%clk 0:00:06.7]} 47... g6 {[%clk 0:00:21.4]} 48.
h5 {[%clk 0:00:04.8]} 48... Qb7 {[%clk 0:00:20.1]} 49. hxg6+ {[%clk 0:00:04.6]}
49... fxg6 {[%clk 0:00:20.7]} 50. Qd6 {[%clk 0:00:04.4]} 50... b4 {[%clk
0:00:18.7]} 51. Nd4 {[%clk 0:00:03.5]} 51... b3 {[%clk 0:00:18.4]} 52. Nxe6
{[%clk 0:00:01.8]} 52... b2 {[%clk 0:00:18.5]} 53. Nf8+ {[%clk 0:00:02]} 53...
Kg8 {[%clk 0:00:18.7]} 54. Ne6 {[%clk 0:00:01.2]} 54... b1=Q {[%clk 0:00:16.2]}
0-1

[Event "*** Titled Tuesday Blitz"]
[Site "Chess.com"]
[Date "2021.03.16"]
[Round "5"]
[White "CrazyMartian"]
[Black "Vasily85"]
[Result "0-1"]
[WhiteElo "2252"]
[BlackElo "2443"]
[TimeControl "180+1"]
[EndTime "10:55:18 PDT"]
[Termination "Vasily85 won on time"]

1. d4 {[%clk 0:03:00.5]} 1... Nf6 {[%clk 0:02:52.1]} 2. c4 {[%clk 0:02:58.3]}
2... e6 {[%clk 0:02:51.9]} 3. Nc3 {[%clk 0:02:58]} 3... Bb4 {[%clk 0:02:51.8]}
4. Qc2 {[%clk 0:02:57.2]} 4... O-O {[%clk 0:02:51.6]} 5. a3 {[%clk 0:02:57.1]}
5... Bxc3+ {[%clk 0:02:51.8]} 6. Qxc3 {[%clk 0:02:58]} 6... d6 {[%clk
0:02:49.3]} 7. Nf3 {[%clk 0:02:57.6]} 7... b6 {[%clk 0:02:46.2]} 8. Bg5 {[%clk
0:02:56.7]} 8... Bb7 {[%clk 0:02:43]} 9. e3 {[%clk 0:02:54]} 9... Nbd7 {[%clk
0:02:28.8]} 10. Be2 {[%clk 0:02:52.4]} 10... h6 {[%clk 0:02:28.1]} 11. Bh4
{[%clk 0:02:51.7]} 11... c5 {[%clk 0:02:19.7]} 12. Rd1 {[%clk 0:02:42.6]} 12...
Qc7 {[%clk 0:02:15.4]} 13. O-O {[%clk 0:02:25.8]} 13... Rac8 {[%clk 0:02:09.3]}
14. dxc5 {[%clk 0:02:21.5]} 14... dxc5 {[%clk 0:01:53.9]} 15. Bg3 {[%clk
0:02:04.8]} 15... Qc6 {[%clk 0:01:52.9]} 16. Qc2 {[%clk 0:01:21.6]} 16... Ne4
{[%clk 0:01:30.1]} 17. Bd3 {[%clk 0:01:07.7]} 17... Nxg3 {[%clk 0:01:24]} 18.
hxg3 {[%clk 0:01:05.8]} 18... Nf6 {[%clk 0:01:23.1]} 19. Rfe1 {[%clk 0:01:03]}
19... Rfd8 {[%clk 0:01:21.8]} 20. Bf1 {[%clk 0:01:02.6]} 20... Ne4 {[%clk
0:01:15.1]} 21. Rxd8+ {[%clk 0:00:59.5]} 21... Rxd8 {[%clk 0:01:16]} 22. Rd1
{[%clk 0:00:58.6]} 22... Rd6 {[%clk 0:01:07.6]} 23. Rxd6 {[%clk 0:00:54.8]}
23... Qxd6 {[%clk 0:01:08.5]} 24. Qd3 {[%clk 0:00:54.3]} 24... Kf8 {[%clk
0:00:59.6]} 25. Qxd6+ {[%clk 0:00:52.3]} 25... Nxd6 {[%clk 0:01:00.5]} 26. Bd3
{[%clk 0:00:52.1]} 26... Ke7 {[%clk 0:00:53.1]} 27. Kf1 {[%clk 0:00:51.4]} 27...
f6 {[%clk 0:00:41.8]} 28. Ke2 {[%clk 0:00:50.3]} 28... e5 {[%clk 0:00:42.2]} 29.
Nd2 {[%clk 0:00:30.1]} 29... Bxg2 {[%clk 0:00:40.2]} 30. f3 {[%clk 0:00:29.4]}
30... Bh3 {[%clk 0:00:34.9]} 31. g4 {[%clk 0:00:23.4]} 31... f5 {[%clk
0:00:34.3]} 32. Kf2 {[%clk 0:00:16.6]} 32... fxg4 {[%clk 0:00:33.6]} 33. Kg3
{[%clk 0:00:16.9]} 33... h5 {[%clk 0:00:32.6]} 34. Ne4 {[%clk 0:00:14.8]} 34...
Nf5+ {[%clk 0:00:31.2]} 35. Kf2 {[%clk 0:00:10.8]} 35... h4 {[%clk 0:00:30.1]}
36. fxg4 {[%clk 0:00:08]} 36... Bxg4 {[%clk 0:00:31]} 37. Ng5 {[%clk 0:00:08.1]}
37... h3 {[%clk 0:00:25.7]} 38. Bxf5 {[%clk 0:00:06.8]} 38... Bxf5 {[%clk
0:00:25.7]} 39. e4 {[%clk 0:00:06.1]} 39... Be6 {[%clk 0:00:23.8]} 40. b3 {[%clk
0:00:05.7]} 40... Kf6 {[%clk 0:00:23.8]} 41. Nf3 {[%clk 0:00:05.1]} 41... g5
{[%clk 0:00:24.1]} 42. Kg3 {[%clk 0:00:05.2]} 42... a6 {[%clk 0:00:19.7]} 43.
Ng1 {[%clk 0:00:03.5]} 43... b5 {[%clk 0:00:18.7]} 44. cxb5 {[%clk 0:00:02.8]}
44... axb5 {[%clk 0:00:19.6]} 45. a4 {[%clk 0:00:03.3]} 45... bxa4 {[%clk
0:00:16.7]} 46. bxa4 {[%clk 0:00:04.2]} 46... c4 {[%clk 0:00:17.2]} 47. Ne2
{[%clk 0:00:04.6]} 47... Bd7 {[%clk 0:00:10.2]} 48. a5 {[%clk 0:00:04.4]} 48...
g4 {[%clk 0:00:10]} 49. a6 {[%clk 0:00:02.5]} 49... Bc6 {[%clk 0:00:10.2]} 50.
a7 {[%clk 0:00:01.8]} 50... Ke6 {[%clk 0:00:09.8]} 0-1

[Event "*** Titled Tuesday Blitz"]
[Site "Chess.com"]
[Date "2021.03.16"]
[Round "5"]
[White "Konavets"]
[Black "Paladin61"]
[Result "0-1"]
[WhiteElo "2942"]
[BlackElo "2792"]
[TimeControl "180+1"]
[EndTime "10:55:20 PDT"]
[Termination "Paladin61 won by checkmate"]

1. e4 {[%clk 0:03:00.9]} 1... c5 {[%clk 0:02:59.9]} 2. Nf3 {[%clk 0:03:01.1]}
2... d6 {[%clk 0:03:00.3]} 3. d4 {[%clk 0:03:01.8]} 3... cxd4 {[%clk 0:03:01.2]}
4. Nxd4 {[%clk 0:03:01.2]} 4... Nf6 {[%clk 0:03:01.7]} 5. Nc3 {[%clk 0:03:00.5]}
5... a6 {[%clk 0:03:02.1]} 6. Bg5 {[%clk 0:03:00.8]} 6... Nbd7 {[%clk
0:03:02.1]} 7. Bc4 {[%clk 0:02:58.5]} 7... Qb6 {[%clk 0:03:01.7]} 8. Bb3 {[%clk
0:02:57.5]} 8... e6 {[%clk 0:03:01.7]} 9. Qd2 {[%clk 0:02:57.7]} 9... Be7 {[%clk
0:03:01.7]} 10. O-O-O {[%clk 0:02:57.6]} 10... Nc5 {[%clk 0:03:02]} 11. f3
{[%clk 0:02:55.5]} 11... Bd7 {[%clk 0:03:01.3]} 12. Kb1 {[%clk 0:02:55.2]} 12...
Qc7 {[%clk 0:03:01.3]} 13. g4 {[%clk 0:02:50.5]} 13... b5 {[%clk 0:02:59.4]} 14.
h4 {[%clk 0:02:50.4]} 14... b4 {[%clk 0:02:51.6]} 15. Nce2 {[%clk 0:02:47.4]}
15... a5 {[%clk 0:02:50.1]} 16. Qe3 {[%clk 0:02:31.5]} 16... a4 {[%clk
0:02:40.3]} 17. Bc4 {[%clk 0:02:31.7]} 17... O-O {[%clk 0:01:55.7]} 18. Bxf6
{[%clk 0:02:24.9]} 18... Bxf6 {[%clk 0:01:55.5]} 19. g5 {[%clk 0:02:25.2]} 19...
Be7 {[%clk 0:01:42.6]} 20. h5 {[%clk 0:02:24.9]} 20... b3 {[%clk 0:01:18.6]} 21.
cxb3 {[%clk 0:02:24.9]} 21... axb3 {[%clk 0:01:17.7]} 22. a3 {[%clk 0:02:25.4]}
22... Nxe4 {[%clk 0:01:15]} 23. Rc1 {[%clk 0:02:25.8]} 23... Nc5 {[%clk
0:00:45.3]} 24. h6 {[%clk 0:01:19.6]} 24... g6 {[%clk 0:00:43]} 25. f4 {[%clk
0:01:15.3]} 25... Qb7 {[%clk 0:00:41]} 26. Ng3 {[%clk 0:01:11.8]} 26... d5
{[%clk 0:00:23.6]} 27. Be2 {[%clk 0:00:49.2]} 27... Rac8 {[%clk 0:00:15.8]} 28.
f5 {[%clk 0:00:36]} 28... Bd6 {[%clk 0:00:15.9]} 29. Rhf1 {[%clk 0:00:16.5]}
29... e5 {[%clk 0:00:15.9]} 30. Bg4 {[%clk 0:00:12.6]} 30... Rfe8 {[%clk
0:00:11.8]} 31. fxg6 {[%clk 0:00:09.3]} 31... fxg6 {[%clk 0:00:12]} 32. Bxd7
{[%clk 0:00:06.9]} 32... Qxd7 {[%clk 0:00:09.1]} 33. Ndf5 {[%clk 0:00:04.7]}
33... gxf5 {[%clk 0:00:06.8]} 34. Nh5 {[%clk 0:00:04.9]} 34... Ne4 {[%clk
0:00:03.8]} 35. Rce1 {[%clk 0:00:02.4]} 35... Rf8 {[%clk 0:00:03.4]} 36. Qxb3
{[%clk 0:00:02.5]} 36... Qe6 {[%clk 0:00:03.1]} 37. Ka2 {[%clk 0:00:02.4]} 37...
Kh8 {[%clk 0:00:03]} 38. Rg1 {[%clk 0:00:02.4]} 38... Rb8 {[%clk 0:00:03.1]} 39.
Qc2 {[%clk 0:00:02.2]} 39... d4+ {[%clk 0:00:03.3]} 40. Ka1 {[%clk 0:00:02.8]}
40... Rfc8 {[%clk 0:00:03.4]} 41. Qd3 {[%clk 0:00:02.7]} 41... Rb3 {[%clk
0:00:02.8]} 42. Qa6 {[%clk 0:00:02.9]} 42... Rbb8 {[%clk 0:00:02.8]} 43. Ng7
{[%clk 0:00:02.8]} 43... Qg6 {[%clk 0:00:02.7]} 44. Rgf1 {[%clk 0:00:02.7]}
44... Bf8 {[%clk 0:00:03]} 45. Qa5 {[%clk 0:00:02.3]} 45... Bxg7 {[%clk
0:00:03.4]} 46. hxg7+ {[%clk 0:00:02.4]} 46... Kxg7 {[%clk 0:00:04.3]} 47. Rh1
{[%clk 0:00:02.8]} 47... Kg8 {[%clk 0:00:04]} 48. Rh6 {[%clk 0:00:02.6]} 48...
Qg7 {[%clk 0:00:03.6]} 49. Reh1 {[%clk 0:00:02.6]} 49... Qb7 {[%clk 0:00:03.3]}
50. Qa4 {[%clk 0:00:02.2]} 50... Qxb2# {[%clk 0:00:02.9]} 0-1